bitfinex-derivatives/quotes_SOLF0:USTF0_20251126
["timestamp","ask_amount","ask_price","bid_price","bid_amount"]
[1764138662591,37.81460431,138.82,138.76,3.06]
[1764138662780,37.81460431,138.82,138.78,0.04956358]
[1764138663179,31.1065,138.82,138.78,0.04956358]
[1764138664379,6.4865,138.82,138.78,0.04956358]
[1764138666289,6.4868,138.81,138.78,0.04956358]
[1764138669495,6.4872,138.8,138.78,0.04956358]
[1764138677402,6.4866,138.82,138.78,2.99956358]
[1764138680197,6.4868,138.81,138.78,2.99956358]
[1764138681807,6.4861,138.83,138.78,2.99956358]
[1764138684014,6.70810431,138.87,138.78,2.99956358]
[1764138684199,132.19270431,138.87,138.81,0.04708464]
[1764138684400,31.32810431,138.87,138.81,0.04708464]
[1764138685411,6.4849,138.85,138.81,2.99708464]
[1764138688208,31.104,138.87,138.81,2.99708464]
[1764138689111,9.6358006,138.88,138.82,2.95]
[1764138689310,2.90964139,138.88,138.82,2.95]
[1764138689912,6.4835,138.88,138.82,2.95]
[1764138692212,6.484,138.87,138.82,2.95]
[1764138692411,6.484,138.87,138.83,3.00128979]
[1764138692612,6.484,138.87,138.84,0.05197295]
[1764138694911,6.484,138.87,138.84,3.00197295]
[1764138699223,6.4844,138.86,138.84,3.00197295]
[1764138699824,6.4844,138.86,138.84,0.05197295]
[1764138701130,2.90964139,138.85,138.84,0.05197295]
[1764138710428,2.90964139,138.85,138.79,3.15]
[1764138710622,9.39454139,138.85,138.79,3.15]
[1764138710819,2.90964139,138.85,138.78,9.05]
[1764138711424,0.05310586,138.83,138.8,0.04667002]
[1764138711725,24.67310586,138.83,138.8,0.04667002]
[1764138712630,1.86154773,138.81,138.8,0.04667002]
[1764138716034,1.91465359,138.83,138.8,3.19667002]
[1764138716220,0.05310586,138.83,138.8,3.19667002]
[1764138719537,1.91465359,138.83,138.8,3.19667002]
[1764138721034,1.91465359,138.83,138.8,0.04667002]
[1764138721230,1.86154773,138.81,138.8,0.04667002]
[1764138721630,13.26433211,138.83,138.8,0.04667002]
[1764138721827,1.86154773,138.82,138.8,0.04667002]
[1764138722226,8.34784773,138.82,138.8,0.04667002]
[1764138724939,0.05310586,138.83,138.8,2.93667002]
[1764138730833,6.485,138.85,138.8,2.93667002]
[1764138731148,6.485,138.85,138.81,3.06]
[1764138734647,6.4843,138.87,138.82,3.06]
[1764138734840,100.8619,138.87,138.83,0.04626998]
[1764138735942,100.8619,138.87,138.83,3.10626998]
[1764138736454,6.485,138.85,138.83,3.10626998]
[1764138737445,1.86154773,138.88,138.83,3.10626998]
[1764138737748,6.72532625,138.89,138.83,3.10626998]
[1764138738659,8.58687398,138.9,138.83,3.10626998]
[1764138739259,6.4836,138.88,138.83,3.10626998]
[1764138740059,8.58687398,138.9,138.83,3.10626998]
[1764138740264,1.86154773,138.9,138.83,3.10626998]
[1764138741362,6.4831,138.89,138.83,3.10626998]
[1764138741657,1.86154773,138.9,138.83,3.10626998]
[1764138742662,8.34434773,138.9,138.83,3.10626998]
[1764138742964,1.86154773,138.9,138.83,3.10626998]
[1764138743466,6.483,138.89,138.83,3.10626998]
[1764138743948,1.86154773,138.9,138.83,3.10626998]
[1764138745355,6.4836,138.88,138.83,3.10626998]
[1764138748461,6.484,138.87,138.83,3.10626998]
[1764138751171,6.4833,138.89,138.84,3.06]
[1764138751470,1.86154773,138.93,138.86,3.06]
[1764138751670,1.86154773,138.93,138.88,0.05354869]
[1764138752056,1.86154773,138.89,138.88,0.05354869]
[1764138753570,27.90154773,138.89,138.81,3.06]
[1764138753761,1.86154773,138.87,138.81,3.06]
[1764138754364,0.05271164,138.85,138.83,0.04669281]
[1764138754770,0.05271164,138.85,138.83,3.10669281]
[1764138759577,6.53771164,138.85,138.83,0.04669281]
[1764138759769,6.53771164,138.85,138.76,3.06]
[1764138759770,102.74884773,138.84,138.76,3.06]
[1764138759972,1.86154773,138.81,138.76,3.06]
[1764138760674,0.04671152,138.8,138.77,0.04788607]
[1764138760875,0.04671152,138.8,138.77,3.17788607]
[1764138761280,6.53411152,138.8,138.77,3.17788607]
[1764138761676,0.04671152,138.8,138.77,3.17788607]
[1764138762981,6.53401152,138.8,138.77,3.17788607]
[1764138764671,1.86154773,138.78,138.75,9.06]
[1764138765778,1.86154773,138.78,138.75,9.11106766]
[1764138766378,8.34984773,138.78,138.75,9.11106766]
[1764138766984,6.4888,138.77,138.75,9.11106766]
[1764138767179,1.86154773,138.76,138.75,9.11106766]
[1764138767780,6.4897,138.75,138.71,3.13]
[1764138767977,1.86154773,138.74,138.71,3.13]
[1764138768579,8.35174773,138.74,138.71,3.13]
[1764138768970,8.40438398,138.74,138.71,3.17883187]
[1764138769169,8.40438398,138.74,138.71,0.04883187]
[1764138769880,6.54283625,138.74,138.71,3.17883187]
[1764138770071,8.35224773,138.73,138.71,0.04883187]
[1764138770280,109.31524773,138.73,138.71,0.04883187]
[1764138770982,100.9744,138.72,138.66,3.13]
[1764138771178,1.86154773,138.7,138.66,3.13]
[1764138771581,6.4925,138.69,138.66,3.13]
[1764138771783,1.86154773,138.68,138.61,3.13]
[1764138772087,0.05405496,138.66,138.63,3.18508657]
[1764138772380,1.91560269,138.66,138.63,0.05508657]
[1764138773279,6.4944,138.65,138.63,0.05508657]
[1764138774584,107.5158,138.65,138.63,0.05508657]
[1764138775273,6.4953,138.63,138.57,3.13]
[1764138775671,103.9325138,138.66,138.57,3.13]
[1764138776076,6.4949,138.64,138.57,3.13]
[1764138776280,0.05426635,138.62,138.6,3.13]
[1764138780484,0.05426635,138.62,138.59,3.17571155]
[1764138781397,6.55006635,138.62,138.59,3.17571155]
[1764138785902,6.4962,138.61,138.59,3.17571155]
[1764138786399,6.4962,138.61,138.59,0.04571155]
[1764138786594,101.0648,138.59,138.52,2.97]
[1764138786796,101.0731,138.58,138.52,2.97]
[1764138787591,0.05011984,138.56,138.54,0.05541569]
[1764138788497,6.54861984,138.56,138.54,0.05541569]
[1764138791302,6.54861984,138.56,138.54,2.93541569]
[1764138793699,6.54861984,138.56,138.54,0.05541569]
[1764138795497,0.05011984,138.56,138.51,2.88]
[1764138796503,6.4995,138.54,138.52,2.93100213]
[1764138796706,6.54594658,138.54,138.52,2.9350016]
[1764138797206,0.04644658,138.54,138.52,2.9350016]
[1764138799601,6.54594658,138.54,138.52,2.9350016]
[1764138800706,0.04644658,138.54,138.52,2.9350016]
[1764138803206,6.54584658,138.54,138.52,2.9350016]
[1764138806112,0.04644658,138.54,138.52,2.9350016]
[1764138812423,0.04644658,138.54,138.52,0.0550016]
[1764138812811,2.9159138,138.53,138.52,0.0550016]
[1764138813013,6.5004,138.52,138.49,2.88]
[1764138813822,6.5004,138.52,138.46,2.88]
[1764138814012,0.05529078,138.5,138.49,0.05286266]
[1764138814519,0.05529078,138.5,138.49,2.93286266]
[1764138817209,2.9159138,138.57,138.49,2.93286266]
[1764138817620,2.9159138,138.57,138.5,2.88]
[1764138817821,2.9159138,138.6,138.5,2.88]
[1764138818123,0.05271706,138.56,138.55,2.88]
[1764138818420,0.05550879,138.57,138.55,2.88]
[1764138822724,0.05550879,138.57,138.54,0.05109396]
[1764138822927,101.13790879,138.57,138.54,0.05109396]
[1764138824425,6.4986,138.56,138.54,0.05109396]
[1764138825729,6.4998,138.53,138.5,2.9]
[1764138826523,6.4998,138.53,138.5,2.94876206]
[1764138826524,6.5527189,138.53,138.5,2.94876206]
[1764138829331,0.0529189,138.53,138.5,2.94876206]
[1764138841043,1.86870518,138.52,138.5,0.04876206]
[1764138841644,0.0529189,138.53,138.5,2.98876206]
[1764138842252,1.92162408,138.53,138.5,0.04876206]
[1764138842454,1.92162408,138.53,138.5,2.98876206]
[1764138842646,0.0529189,138.53,138.5,2.98876206]
[1764138842846,1.92162408,138.53,138.5,2.98876206]
[1764138847254,0.0529189,138.53,138.5,2.98876206]
[1764138847552,1.86870518,138.58,138.51,2.94]
[1764138848347,1.86870518,138.54,138.53,0.04792285]
[1764138849964,1.91714629,138.56,138.53,2.98792285]
[1764138851255,8.41564629,138.56,138.53,2.98792285]
[1764138853355,8.41564629,138.56,138.53,0.04792285]
[1764138854973,8.41564629,138.56,138.53,2.93792285]
[1764138855361,6.4989,138.55,138.53,2.93792285]
[1764138860666,6.4989,138.55,138.53,0.04792285]
[1764138861567,6.4989,138.55,138.5,2.89]
[1764138861568,1.86870518,138.54,138.5,2.89]
[1764138862268,6.5003,138.52,138.5,2.89]
[1764138862482,6.54952906,138.52,138.5,2.93946944]
[1764138867362,6.54952906,138.52,138.5,0.04946944]
[1764138871273,6.54952906,138.52,138.5,2.93946944]
[1764138876273,6.54952906,138.52,138.5,0.04946944]
[1764138876474,101.1389,138.49,138.43,8.97641776]
[1764138876670,1.86870518,138.48,138.42,2.89]
[1764138877276,6.5024,138.48,138.42,2.89]
[1764138877576,0.04669588,138.46,138.45,2.89]
[1764138922006,9.63359392,138.52,138.45,2.89]
[1764138922305,6.5032,138.46,138.42,3.15]
[1764138922900,0.05436993,138.45,138.43,3.19773759]
[1764138930616,6.55806993,138.45,138.43,3.19773759]
[1764138930816,6.55806993,138.45,138.43,0.04773759]
[1764138931218,6.55806993,138.45,138.43,3.19773759]
[1764138931717,6.55806993,138.45,138.43,0.04773759]
[1764138935028,6.5046,138.43,138.41,3.15]
[1764138936029,6.5046,138.43,138.41,3.19926929]
[1764138947743,0.00436993,138.45,138.41,3.19926929]
[1764138948340,6.70390773,138.52,138.43,3.08]
[1764138948535,24.7,138.53,138.44,3.08]
[1764138948536,31.40390773,138.53,138.44,3.08]
[1764138948746,24.7,138.53,138.44,3.08]
[1764138949145,31.2001,138.53,138.47,3.08]
[1764138949334,0.04986216,138.51,138.5,3.08]
[1764138957848,0.04986216,138.51,138.49,3.13424649]
[1764138970561,0.04986216,138.51,138.49,0.05424649]
[1764138970859,1.91849229,138.51,138.49,0.05424649]
[1764138971060,6.55066216,138.51,138.49,2.93424649]
[1764138972064,0.04986216,138.51,138.49,2.93424649]
[1764138972355,0.04986216,138.51,138.46,8.37163013]
[1764138972958,0.04986216,138.51,138.42,8.97140696]
[1764138973161,0.05149543,138.48,138.45,1.92078538]
[1764138973964,0.05149543,138.48,138.45,8.42418538]
[1764138974364,0.05149543,138.48,138.46,2.88]
[1764138974567,0.05149543,138.48,138.46,9.383]
[1764138974766,0.05149543,138.48,138.47,2.88]
[1764138975864,1.49149543,138.48,138.45,0.05215525]
[1764138976061,1.49149543,138.48,138.38,2.88]
[1764138976062,103.02433013,138.47,138.38,2.88]
[1764138976262,6.5042,138.44,138.38,2.88]
[1764138977061,6.5042,138.44,138.41,2.88]
[1764138977062,0.05350296,138.42,138.41,2.88]
[1764138978660,0.05350296,138.42,138.4,2.9301273]
[1764138981158,0.05350296,138.42,138.4,0.0501273]
[1764138981664,0.05350296,138.42,138.4,2.9301273]
[1764138993080,6.5028,138.47,138.41,2.88]
[1764138993392,1.86863013,138.51,138.43,2.88]
[1764138993573,1.86863013,138.53,138.46,2.88]
[1764138993779,1.86863013,138.53,138.47,2.88]
[1764138993977,1.86863013,138.55,138.47,2.88]
[1764138994187,0.05101656,138.52,138.51,2.88]
[1764138996489,8.36673013,138.57,138.51,2.88]
[1764138997575,0.05132932,138.55,138.51,2.88]
[1764139001700,114.39256168,138.65,138.55,3.14]
[1764139001701,1.86863013,138.63,138.55,3.14]
[1764139002005,1.86863013,138.65,138.57,3.14]
[1764139002492,8.36303013,138.65,138.57,3.14]
[1764139002693,0.051476,138.62,138.61,3.14]
[1764139002995,0.0492142,138.63,138.61,3.14]
[1764139003194,0.04620439,138.63,138.61,3.1947264]
[1764139003400,1.86863013,138.69,138.61,3.1947264]
[1764139004397,0.05301269,138.66,138.61,3.1947264]
[1764139004599,0.05301269,138.66,138.63,3.14]
[1764139017307,0.05301269,138.66,138.63,9.6348]
[1764139017509,1.86863013,138.64,138.61,0.0547264]
[1764139017806,1.86863013,138.62,138.56,3.14]
[1764139017991,1.86863013,138.59,138.56,3.14]
[1764139018394,8.36583013,138.59,138.56,3.14]
[1764139018607,2.91778388,138.61,138.56,3.14]
[1764139018909,0.04994721,138.6,138.57,0.04569004]
[1764139020304,6.54664721,138.6,138.57,0.04569004]
[1764139022614,0.04994721,138.6,138.58,2.98]
[1764139022814,0.04994721,138.6,138.57,3.02569004]
[1764139027123,6.54664721,138.6,138.57,3.02569004]
[1764139031922,0.04994721,138.6,138.57,3.02569004]
[1764139034318,6.4954,138.63,138.57,3.02569004]
[1764139035328,0.04620521,138.61,138.58,3.11]
[1764139037624,128.59948388,138.68,138.58,3.11]
[1764139037625,27.59778388,138.68,138.58,3.11]
[1764139037931,6.4936,138.67,138.58,3.11]
[1764139038240,2.91778388,138.71,138.61,3.11]
[1764139038533,6.4926,138.69,138.61,3.11]
[1764139038730,0.05253707,138.66,138.65,3.11]
[1764139039728,0.05253707,138.66,138.64,0.04616763]
[1764139040035,0.05253707,138.66,138.64,3.15616763]
[1764139058244,6.4911,138.72,138.67,3.11]
[1764139059130,6.4911,138.72,138.68,0.05499437]
[1764139059343,0.05291612,138.71,138.69,3.11]
[1764139059738,0.05291612,138.71,138.68,0.05499437]
[1764139060346,0.05291612,138.71,138.68,3.16499437]
[1764139064546,6.54431612,138.71,138.68,3.16499437]
[1764139066958,6.492,138.7,138.68,0.05499437]
[1764139076056,0.05291612,138.71,138.68,2.93499437]
[1764139076948,6.54441612,138.71,138.68,2.93499437]
[1764139077258,0.05291612,138.71,138.68,2.93499437]
[1764139078155,6.54441612,138.71,138.68,2.93499437]
[1764139080155,0.05291612,138.71,138.68,2.93499437]
[1764139082158,6.54431612,138.71,138.68,2.93499437]
[1764139082852,6.54431612,138.71,138.68,0.05499437]
[1764139083157,8.3554553,138.7,138.68,0.05499437]
[1764139090860,6.4919,138.7,138.68,3.19499437]
[1764139091463,6.4919,138.7,138.68,0.05499437]
[1764139099870,1.8635553,138.69,138.68,0.05499437]
[1764139100173,101.0076,138.67,138.6,3.14]
[1764139100374,1.8635553,138.65,138.6,3.14]
[1764139100871,8.3578553,138.65,138.6,3.14]
[1764139101072,0.05525358,138.64,138.62,3.14]
[1764139101775,0.05525358,138.64,138.63,3.14]
[1764139104763,1.91880888,138.64,138.61,0.04598051]
[1764139104964,1.8635553,138.62,138.61,0.04598051]
[1764139105568,11.62368036,138.63,138.61,0.04598051]
[1764139105870,5.12838036,138.63,138.61,0.04598051]
[1764139106273,5.18363394,138.64,138.61,3.18598051]
[1764139106577,0.05525358,138.64,138.61,3.18598051]
[1764139113976,0.05525358,138.64,138.61,9.68178051]
[1764139114181,0.05525358,138.64,138.62,3.14]
[1764139120182,0.05525358,138.64,138.61,0.04598051]
[1764139120488,0.05525358,138.64,138.61,3.18598051]
[1764139124593,1.91880888,138.64,138.61,3.18598051]
[1764139125681,1.91880888,138.64,138.61,0.04598051]
[1764139125988,1.8635553,138.62,138.61,0.04598051]
[1764139137204,6.4952,138.63,138.61,2.92598051]
[1764139137595,1.91880888,138.64,138.61,2.92598051]
[1764139138407,0.05525358,138.64,138.61,2.92598051]
[1764139141396,0.05525358,138.64,138.61,11.28543581]
[1764139141600,0.05525358,138.64,138.62,2.88]
[1764139143998,6.55005358,138.64,138.62,2.88]
[1764139145304,0.05525358,138.64,138.62,2.88]
[1764139147009,0.05525358,138.64,138.61,3.19598051]
[1764139151322,0.05525358,138.64,138.61,9.69188051]
[1764139151514,0.05525358,138.64,138.62,2.99]
[1764139154716,0.05525358,138.64,138.62,9.4854]
[1764139154923,5.12010201,138.69,138.63,2.99]
[1764139155128,5.12010201,138.7,138.63,2.99]
[1764139155324,5.12010201,138.69,138.63,2.99]
[1764139155624,5.12010201,138.7,138.63,2.99]
[1764139155922,0.04686379,138.68,138.66,2.99]
[1764139170135,100.9352,138.77,138.66,2.99]
[1764139170327,5.10099949,138.76,138.67,2.99]
[1764139170914,6.4901,138.74,138.7,2.99]
[1764139171130,0.04753614,138.72,138.7,3.04373]
[1764139173623,0.04753614,138.72,138.7,9.53543]
[1764139173928,8.01245842,138.78,138.71,2.99]
[1764139174133,6.4879,138.79,138.74,2.99]
[1764139174333,27.57388678,138.81,138.74,2.99]
[1764139174334,24.66,138.81,138.74,2.99]
[1764139174529,5.09694822,138.83,138.74,2.99]
[1764139174730,5.09694822,138.83,138.77,3.04210593]
[1764139174731,0.05377091,138.8,138.77,3.04210593]
[1764139178741,0.05377091,138.8,138.77,9.53040593]
[1764139179035,0.05377091,138.8,138.78,2.99]
[1764139182242,24.66,138.88,138.79,2.99]
[1764139183145,0.05135757,138.85,138.82,3.03757813]
[1764139183545,2.91388678,138.92,138.82,3.03757813]
[1764139183744,27.55388678,138.95,138.86,2.99]
[1764139184051,32.62579243,138.95,138.86,2.99]
[1764139184250,6.4814,138.93,138.86,2.99]
[1764139184450,0.04592528,138.91,138.88,3.03910979]
[1764139191459,0.04592528,138.91,138.88,0.04910979]
[1764139193367,6.4827,138.9,138.88,0.04910979]
[1764139194467,0.04592528,138.91,138.88,0.04910979]
[1764139195070,6.4826,138.9,138.88,0.04910979]
[1764139203176,6.4826,138.9,138.88,3.11910979]
[1764139204077,6.4826,138.9,138.88,0.04910979]
[1764139205868,6.4826,138.9,138.88,3.11910979]
[1764139206069,1.90498096,138.91,138.88,3.11910979]
[1764139206877,6.4826,138.9,138.88,0.04910979]
[1764139209882,127.32835568,138.89,138.83,3.07]
[1764139210175,1.85905568,138.87,138.83,3.07]
[1764139210881,0.04653845,138.86,138.84,0.04900768]
[1764139211081,0.04653845,138.86,138.84,3.10900768]
[1764139215474,0.04653845,138.86,138.84,9.59420768]
[1764139215682,0.04653845,138.86,138.85,3.06]
[1764139216782,6.4828,138.9,138.85,3.06]
[1764139217086,1.85905568,138.91,138.86,3.06]
[1764139217382,11.55476665,138.92,138.86,3.06]
[1764139217585,6.4819,138.92,138.86,3.06]
[1764139217780,6.4821,138.91,138.86,3.06]
[1764139217981,0.04817851,138.9,138.88,3.06]
[1764139223189,5.12104516,138.9,138.88,3.06]
[1764139226191,0.04817851,138.9,138.88,3.06]
[1764139226694,5.15587617,138.9,138.88,3.06]
[1764139226894,0.04817851,138.9,138.88,3.06]
[1764139228785,109.37750717,138.96,138.89,3.06]
[1764139229188,102.65555568,138.96,138.89,3.06]
[1764139229387,6.4807,138.94,138.89,3.06]
[1764139229794,6.4807,138.94,138.91,3.06]
[1764139230294,6.4812,138.93,138.9,0.05344272]
[1764139230898,6.4812,138.93,138.9,3.11344272]
[1764139235295,1.85905568,138.94,138.9,3.11344272]
[1764139235600,1.85905568,138.96,138.9,3.11344272]
[1764139235896,114.13556168,139.0,138.93,3.06]
[1764139235897,13.20015149,139.0,138.93,3.06]
[1764139236087,6.4782,139.0,138.95,3.11057271]
[1764139236288,8.58100717,139.01,138.95,3.11057271]
[1764139236289,6.72195149,139.01,138.95,3.11057271]
[1764139236500,6.72195149,139.03,138.95,3.11057271]
[1764139236696,13.19845149,139.03,138.98,3.11319449]
[1764139236896,1.85905568,139.02,138.98,0.05319449]
[1764139237296,1.85905568,139.02,138.98,3.11319449]
[1764139238591,6.4765,139.03,138.98,3.11319449]
[1764139239704,24.64,139.04,138.98,3.11319449]
[1764139240197,24.64,139.04,138.99,3.06]
[1764139240800,1.85905568,139.06,138.99,3.06]
[1764139240997,6.4752,139.06,139.01,3.00522374]
[1764139241197,24.64,139.08,139.01,3.00522374]
[1764139241504,1.85905568,139.07,139.01,3.00522374]
[1764139242395,6.4752,139.06,139.01,3.00522374]
[1764139243911,8.33475568,139.05,139.01,0.05522374]
[1764139245000,8.33475568,139.05,139.01,3.00522374]
[1764139245309,6.4757,139.05,139.01,3.00522374]
[1764139247211,6.4761,139.04,139.01,3.00522374]
[1764139248906,8.33435568,139.06,139.01,3.00522374]
[1764139249612,6.4757,139.05,139.01,3.00522374]
[1764139249806,1.85905568,139.06,139.01,3.00522374]
[1764139251409,6.4761,139.04,139.01,3.00522374]
[1764139252010,8.33435568,139.06,139.01,3.00522374]
[1764139253113,6.4756,139.05,139.01,3.00522374]
[1764139254423,6.4762,139.04,139.01,3.00522374]
[1764139255823,6.4765,139.03,139.01,0.05522374]
[1764139256724,6.4765,139.03,139.01,3.00522374]
[1764139256919,6.4758,139.05,139.01,3.00522374]
[1764139257320,1.85905568,139.06,139.01,3.00522374]
[1764139257826,144.1848334,139.12,139.02,2.95]
[1764139257827,1.85905568,139.09,139.02,2.95]
[1764139258118,1.85905568,139.09,139.04,3.00119729]
[1764139258622,6.4747,139.07,139.04,3.00119729]
[1764139259612,6.4752,139.06,139.04,3.00119729]
[1764139262226,6.4752,139.06,139.04,0.05119729]
[1764139262529,1.85905568,139.05,139.04,0.05119729]
[1764139262725,102.59125568,139.05,138.96,2.93]
[1764139262922,1.85905568,139.03,138.96,2.93]
[1764139263122,26.47905568,139.05,138.97,2.93]
[1764139263720,0.04718599,139.02,139.0,0.04556244]
[1764139264526,0.04718599,139.02,139.0,2.97556244]
[1764139268338,0.04718599,139.02,139.0,0.04556244]
[1764139269531,6.52418599,139.02,139.0,0.04556244]
[1764139270034,0.04718599,139.02,139.0,2.97556244]
[1764139271834,0.04718599,139.02,139.0,0.04556244]
[1764139273121,0.04718599,139.02,138.95,2.9]
[1764139273933,2.89921284,139.0,138.95,2.9]
[1764139274336,0.04779425,138.99,138.96,0.0515071]
[1764139275133,2.94700709,138.99,138.96,0.0515071]
[1764139275929,0.04779425,138.99,138.96,2.9515071]
[1764139280135,0.04779425,138.99,138.97,2.9]
[1764139283032,24.62,139.02,138.97,2.9]
[1764139283235,6.4759,139.05,138.97,2.9]
[1764139284134,6.4759,139.05,138.95,8.97133647]
[1764139284135,0.04699072,139.02,139.01,2.9]
[1764139291142,0.04699072,139.02,139.0,0.04861872]
[1764139291337,100.7818,138.98,138.92,11.87133647]
[1764139291649,103.68101284,138.98,138.92,2.9]
[1764139292031,100.7667,139.0,138.92,2.9]
[1764139292231,100.7672,139.0,138.95,0.04967832]
[1764139292436,0.04897982,138.97,138.95,2.94967832]
[1764139296046,6.52827982,138.97,138.95,2.94967832]
[1764139299140,0.04897982,138.97,138.95,2.94967832]
[1764139317261,6.52827982,138.97,138.95,0.04967832]
[1764139317458,134.98016433,139.04,138.95,3.11967832]
[1764139317660,132.08095149,139.04,138.95,3.07]
[1764139317863,6.4777,139.01,138.95,3.07]
[1764139318454,0.04893686,138.99,138.98,3.07]
[1764139320452,0.04893686,138.99,138.97,3.12377879]
[1764139324254,6.52723686,138.99,138.97,3.12377879]
[1764139325750,6.52723686,138.99,138.97,0.05377879]
[1764139325962,6.52723686,138.99,138.97,2.96377879]
[1764139326462,6.52723686,138.99,138.97,0.05377879]
[1764139327064,6.52723686,138.99,138.97,2.96377879]
[1764139328665,6.52723686,138.99,138.97,4.81945975]
[1764139329563,6.52723686,138.99,138.98,2.91]
[1764139331467,0.04893686,138.99,138.98,2.91]
[1764139360707,6.72195149,139.03,138.98,2.91]
[1764139360904,6.72195149,139.06,139.03,2.86]
[1764139361509,6.4756,139.05,139.03,2.86]
[1764139361698,107.43365149,139.08,139.03,2.9137602]
[1764139363303,6.4749,139.07,139.03,2.9137602]
[1764139364111,24.6,139.09,139.05,2.86]
[1764139364406,24.6,139.09,139.07,2.86]
[1764139364614,24.6,139.09,139.07,2.90751809]
[1764139366512,24.6,139.09,139.08,4.71568096]
[1764139367311,6.4725,139.12,139.08,4.71568096]
[1764139367512,31.0725,139.12,139.08,4.71568096]
[1764139367708,31.0725,139.12,139.09,2.86]
[1764139368007,31.0725,139.12,139.11,2.86]
[1764139368008,24.6,139.12,139.11,2.86]
[1764139369810,24.6,139.12,139.1,4.76523097]
[1764139369811,31.0724,139.12,139.1,4.76523097]
[1764139370218,31.0724,139.12,139.1,0.04955001]
[1764139371801,6.4715,139.14,139.11,2.86]
[1764139372006,6.4715,139.14,139.12,4.71568096]
[1764139372407,6.4715,139.14,139.13,2.86]
[1764139372716,6.4706,139.16,139.13,2.86]
[1764139373014,6.4706,139.16,139.14,4.71568096]
[1764139373913,6.4706,139.16,139.14,1.85568096]
[1764139374109,125.2484,139.17,139.13,0.04719801]
[1764139374310,6.4712,139.15,139.13,2.90719801]
[1764139374701,125.2484,139.17,139.13,2.90719801]
[1764139374702,24.6,139.17,139.13,2.90719801]
[1764139375716,24.6,139.17,139.14,4.71568096]
[1764139376309,31.0701,139.17,139.14,4.71568096]
[1764139377222,31.0701,139.17,139.15,2.86]
[1764139379311,31.0701,139.17,139.13,2.90719801]
[1764139379513,6.4706,139.16,139.13,2.90719801]
[1764139380319,6.4706,139.16,139.13,0.04719801]
[1764139380520,6.4706,139.16,139.13,2.90719801]
[1764139386022,6.471,139.15,139.13,2.90719801]
[1764139386421,6.471,139.15,139.13,0.04719801]
[1764139392327,100.6365,139.18,139.13,3.09719801]
[1764139393433,6.4705,139.16,139.13,3.09719801]
[1764139397428,6.4695,139.18,139.13,3.09719801]
[1764139397629,24.58,139.19,139.14,0.04539642]
[1764139397929,125.212,139.19,139.15,0.0464803]
[1764139399535,9.36424275,139.17,139.15,0.0464803]
[1764139400133,103.54074275,139.17,139.11,3.05]
[1764139400444,103.54074275,139.17,139.04,103.62814275]
[1764139400445,100.6821,139.12,139.06,3.05]
[1764139400632,2.89424275,139.1,139.04,3.05]
[1764139401444,0.05208455,139.08,139.06,0.05062611]
[1764139401936,6.52628455,139.08,139.06,0.05062611]
[1764139404236,31.10628455,139.08,139.06,0.05062611]
[1764139405130,2.89424275,139.07,139.06,0.05062611]
[1764139405333,6.4752,139.06,139.02,3.05]
[1764139405936,6.4756,139.05,139.02,3.05]
[1764139406341,6.52848029,139.05,139.02,0.05087818]
[1764139408241,6.52848029,139.05,139.02,3.10087818]
[1764139408547,0.05288029,139.05,139.02,3.10087818]
[1764139418253,122.2834,139.11,139.02,3.10087818]
[1764139418254,6.4725,139.12,139.06,3.05]
[1764139418455,103.54044275,139.17,139.06,3.05]
[1764139419042,6.4716,139.14,139.08,3.05]
[1764139419240,100.6587,139.15,139.1,0.04902679]
[1764139419454,0.04718406,139.12,139.1,0.04902679]
[1764139419657,0.04718406,139.12,139.1,3.09902679]
[1764139422256,0.04718406,139.12,139.1,0.04902679]
[1764139423356,0.04718406,139.12,139.1,2.95902679]
[1764139443566,6.51948406,139.12,139.1,2.95902679]
[1764139445565,0.04718406,139.12,139.1,2.95902679]
[1764139452567,1.89990289,139.12,139.07,2.99]
[1764139452863,0.04718406,139.12,139.07,2.99]
[1764139453675,0.04718406,139.12,139.09,2.99]
[1764139455374,0.04718406,139.12,139.1,2.99]
[1764139455775,6.72195149,139.18,139.12,6.4721]
[1764139455979,6.4691,139.19,139.13,2.99]
[1764139455980,15.04377032,139.19,139.13,2.99]
[1764139456273,1.85271883,139.17,139.13,2.99]